Cogmind - Beta 15 @@@ ROGUE MODE // 2025.07.07 @ 11:07:49 Player: deadnoob Result: Destroyed by Y-45 Defender with Beam Rifle Performance ------------- Evolutions (1) 500 Regions Visited (4) 800 Robots Destroyed (94) 470 Value Destroyed (2026) 2026 Prototype IDs (4) 80 Alien Tech Used (0) 0 Bonus (11) 11 TOTAL SCORE: 3887 Bonus ------- High Alert Combat Kills 11 Cogmind --------- Core Integrity 0/400 Matter 300/300 Energy 280/280 System Corruption 3% Temperature Cool (9) Movement Treading (240) Ox1 Location -9/Storage Parts ------- > --- POWER (1) -------- Cooled Ion Engine > --- PROPULSION (2) --- Light Treads Light Treads > --- UTILITY (4) ------ High-capacity Storage Unit Heavy Armor Plating Hacking Suite > --- WEAPON (2) ------- Heavy Assault Rifle Autogun > --- INVENTORY (20) --- Cooled Ion Engine Light Treads Light Treads Light Treads Light Treads Compact Matter Pod (150) Heavy Armor Plating Heavy Armor Plating Heavy Armor Plating Shield Generator Shield Generator Heavy Assault Rifle Autogun Improved Light Cannon Grenade Launcher Plasma Cutter Hammer Peak State ------------ > --- POWER ------------ Cooled Ion Engine > --- PROPULSION ------- Light Treads Light Treads > --- UTILITY ---------- High-capacity Storage Unit Heavy Armor Plating Hacking Suite > --- WEAPON ----------- Heavy Assault Rifle Autogun > --- INVENTORY -------- Cooled Ion Engine Light Treads Light Treads Light Treads Light Treads Compact Matter Pod Heavy Armor Plating Heavy Armor Plating Heavy Armor Plating Shield Generator Shield Generator Autogun Improved Light Cannon Grenade Launcher Plasma Cutter Hammer [Rating: 23] Favorites ----------- Power Improved Ion Engine Engine Improved Ion Engine Propulsion Light Treads Treads Light Treads Leg Aluminum Leg Wheel Compact Wheel Flight Unit Improved Flight Unit Utility Seismic Detector Device Seismic Detector Storage Large Storage Unit Hackware Hacking Suite Protection Light Armor Plating Weapon Beam Cannon Energy Gun Beamcaster Energy Cannon Beam Cannon Ballistic Gun Heavy Assault Rifle Launcher Rocket Launcher Impact Weapon Hammer Build | -11 -10 -10 -9 -9 ------- Run | Yrd Mat Min Mat Sto Slots Evolved 2 | . . . 2 . Power . | . . . . . Propulsion . | . . . . . Utility 2 | . . . 2 . Weapon . | . . . . . Parts Attached 62 | 2 15 6 31 8 Power 8 | . 2 1 4 1 Engine 8 | . 2 1 4 1 Core . | . . . . . Reactor . | . . . . . Propulsion 21 | . 6 1 10 4 Treads 17 | . 3 1 9 4 Leg 2 | . 2 . . . Wheel 1 | . 1 . . . Hover . | . . . . . Flight 1 | . . . 1 . Utility 16 | 1 3 1 9 2 Device 8 | 1 1 1 4 1 Storage 3 | . 2 . 1 . Processor . | . . . . . Hackware 1 | . . . 1 . Protection 4 | . . . 3 1 Artifact . | . . . . . Weapon 17 | 1 4 3 8 1 Energy Gun 3 | 1 . . 2 . Energy Cannon 3 | . 2 1 . . Ballistic Gun 8 | . 2 1 4 1 Ballistic Cannon . | . . . . . Launcher 2 | . . 1 1 . Special Weapon . | . . . . . Impact Weapon 1 | . . . 1 . Slashing Weapon . | . . . . . Piercing Weapon . | . . . . . Special Melee Weapon . | . . . . . Unidentified Prototypes 4 | . . . 4 . Parts Lost 6 | . . . 2 4 Power 2 | . . . 2 . Propulsion 1 | . . . . 1 Utility 2 | . . . . 2 Weapon 1 | . . . . 1 Highest Loss Streak 4 | . . . 1 4 To Critical Strikes . | . . . . . Average Backups 14 | 6 10 15 16 15 Power . | 1 . . . 1 Propulsion 2 | 4 1 1 2 2 Utility 6 | . 4 7 7 6 Weapon 5 | 1 4 6 5 3 Tool/Special . | . . . . . Unused Backups 24 | 5 6 1 3 9 Power 4 | 1 1 . . 2 Propulsion 3 | 2 1 . . . Utility 15 | 1 4 1 3 6 Weapon 1 | 1 . . . . Tool/Special 1 | . . . . 1 Average Slot Usage (%) 98 | . 100 99 99 93 Engine 12 | . 14 14 10 11 Treads 22 | . 19 27 21 22 Leg 2 | . 8 . . . Device 15 | . 14 14 17 7 Storage 12 | . 14 14 11 11 Hackware 3 | . . . 4 11 Protection 6 | . . . 11 8 Energy Gun 4 | . . . 9 . Energy Cannon 10 | . 19 26 3 . Ballistic Gun 7 | . 7 1 7 20 Peak Build Rating 23 | 7 10 12 22 23 Average Rating 14 | 6 8 10 17 18 On Entrance 10 | 6 7 10 12 19 Naked Turns . | . . . . . Heaviest Build 69 | 13 32 34 61 69 Greatest Support 40 | 20 40 40 40 40 Greatest Overweight (x) 1 | . 1 . 1 1 Average Overweight (x) . | . . . . 1 Largest Inventory Capacity 20 | 8 15 15 20 20 Average Capacity 16 | 8 11 15 18 20 Most Carried 20 | 6 15 15 20 20 Average Carried 15 | 6 10 14 17 19 Final Capacity 20 | 8 15 15 20 20 Final Carried 20 | 6 15 15 20 20 Class Distribution -------------------- 56% | Scavenger-Mutant 43% | Mutant Dominant Class ---------------- Mutant | -10/Materials Mutant | -10/Mines Scavenger-Mutant | -9/Materials Scavenger-Mutant | -9/Storage Resources | -11 -10 -10 -9 -9 ----------- Run | Yrd Mat Min Mat Sto Matter Collected 2192 | 220 358 135 988 491 Remotely . | . . . . . Salvage Created 3128 | 200 372 601 1404 551 Parts 185 | 15 18 38 81 33 Haulers Intercepted 6 | . 2 . 4 . Recyclers Shooed 3 | . 2 . 1 . Parts Field Recycled . | . . . . . Retrieved Matter . | . . . . . Parts Self-Destructed . | . . . . . Prevented . | . . . . . Kills | -11 -10 -10 -9 -9 ------- Run | Yrd Mat Min Mat Sto Combat Hostiles Destroyed 66 | . 8 13 35 10 Guns 30 | . 5 1 14 10 Cannons 17 | . 3 12 2 . AOE 17 | . . . 17 . Classes Destroyed 13 | 2 6 2 3 . Worker 3 | . 1 . 2 . Builder 2 | . . . 2 . Tunneler 6 | 5 . 1 . . Hauler 6 | . 2 . 4 . Recycler 7 | 1 . 2 3 1 Operator 2 | . . . 1 1 Watcher 3 | . 2 . 1 . Swarmer 26 | . 3 6 17 . Grunt 21 | . 3 4 7 7 Brawler 1 | . . . 1 . Sentry 15 | . . 2 10 3 Subdweller 2 | . 2 . . . Assembled 1 | . . 1 . . Best Kill Streak 8 | 6 3 7 8 4 Combat Bots Only 8 | . 3 7 8 3 Max Kills in Single Turn 3 | 1 2 1 3 1 Gunslinging 1 | . 1 . . . Exploded 3 | . . . 3 . Melee . | . . . . . Uniques/NPCs Destroyed . | . . . . . Combat | -11 -10 -10 -9 -9 -------- Run | Yrd Mat Min Mat Sto Hostile Shots Fired 277 | . 39 31 123 84 Missed 65 | . 11 6 37 11 Hits 212 | . 28 25 86 73 Projectile 212 | . 28 25 86 73 Critical Strikes 6 | . 1 . 4 1 Damage Taken 2755 | . 347 296 1074 1038 Core 592 | . 116 65 220 191 Absorbed by Shields . | . . . . . Regen/Repaired (Parts) 107 | . . . 107 . Core Remaining (%) 63 | 100 . 27 . . Volleys Fired 235 | 10 43 44 95 43 Largest 2 | 2 2 2 2 2 Hottest 135 | 80 120 120 135 46 Shots Fired 436 | 20 82 69 180 85 Gun 316 | 20 46 20 147 83 Cannon 109 | . 36 49 24 . Launcher 11 | . . . 9 2 Special . | . . . . . Kinetic 206 | . 46 20 57 83 Thermal 199 | . 36 49 114 . Explosive 11 | . . . 9 2 Electromagnetic 20 | 20 . . . . Robot Hit Streak 25 | 3 24 25 10 17 Robot Miss Streak 5 | 2 5 2 3 4 Penetration Max . | . . . . . Secondary Targets 1 | . 1 . . . Max Gunslinging Chain 1 | . 1 . . . Shots Hit Robots 274 | 9 52 37 111 65 Core Hits 124 | 6 18 20 59 21 Critical Kills . | . . . . . Critical Parts Destroyed . | . . . . . Critical Strikes 5 | . . . 5 . Burn 5 | . . . 5 . Melee Attacks 6 | . . . 2 4 Impact 6 | . . . 2 4 Slashing . | . . . . . Piercing . | . . . . . Sneak Attacks . | . . . . . Combat Hostiles . | . . . . . Follow-up Attacks . | . . . . . Damage Inflicted 5803 | 116 841 688 3089 1069 Guns 3325 | 116 404 24 1744 1037 Cannons 1294 | . 420 644 230 . Explosions 1111 | . . . 1111 . Melee 32 | . . . . 32 Ramming 41 | . 17 20 4 . Kinetic 2090 | . 404 24 625 1037 Thermal 2413 | . 420 644 1349 . Explosive 1111 | . . . 1111 . Electromagnetic 116 | 116 . . . . Impact 32 | . . . . 32 Slashing . | . . . . . Piercing . | . . . . . Highest Corruption 3 | . . . 3 3 Average Corruption 2 | . . . 2 3 Corruption Purged . | . . . . . Corruption Blocked . | . . . . . Effects 59 | . . . 46 13 Message Errors 18 | . . . 15 3 Matter Fused 10 | . . . 8 2 Heat Flow Errors 5 | . . . 4 1 Energy Discharges 5 | . . . 4 1 Parts Rejected 2 | . . . 1 1 Parts Fused 1 | . . . 1 . Data Loss (minor) 9 | . . . 8 1 Data Loss (major) 5 | . . . 2 3 Misfires 2 | . . . 1 1 Alerts 2 | . . . 2 . Overload Shots . | . . . . . Overflow Damage 70 | . 2 . 68 . Projectiles 7 | . 2 . 5 . Explosions 63 | . . . 63 . Melee . | . . . . . Knockbacks 1 | . . . . 1 Impact 1 | . . . . 1 Kinetic . | . . . . . Secondary . | . . . . . Self-Inflicted Damage 21 | . . . 21 . Shots 1 | . . . 1 . Rammed 4 | . 1 2 1 . Targets Rammed 5 | . 2 2 1 . Kicked . | . . . . . Crushed 1 | . 1 . . . Highest Temperature 195 | 72 180 195 180 151 Average Temperature 36 | 30 52 61 27 21 Received Heat Transfer 1014 | . 78 63 369 504 Siege Activations . | . . . . . Martial Activations . | . . . . . Shielding Activations . | . . . . . Robots Disrupted . | . . . . . Combat Hostiles . | . . . . . Robots Corrupted . | . . . . . Combat Hostiles . | . . . . . Parts Fried 1 | 1 . . . . Impact Corruptions . | . . . . . Robots Melted 2 | . . . 2 . Combat Hostiles 2 | . . . 2 . Parts Melted 13 | . 1 1 11 . Heat Transferred 5254 | . 888 1332 3034 . Parts Sabotaged . | . . . . . Parts Stolen . | . . . . . Parts Stripped . | . . . . . Power Chain Reactions . | . . . . . Alert | -11 -10 -10 -9 -9 ------- Run | Yrd Mat Min Mat Sto Maximum Alert Level 2 | . . . 2 . Low Security (%) 67 | 100 100 100 31 100 Level 1 30 | . . . 64 . Level 2 2 | . . . 4 . Level 3 . | . . . . . Level 4 . | . . . . . Level 5 . | . . . . . High Security . | . . . . . Max Security . | . . . . . Peak Influence 418 | 15 104 166 418 190 Initial 172 | . 6 . 57 172 Average 134 | 3 17 19 234 150 Influence Increases 1966 | 30 283 286 1047 320 Destroy 0b10 Robot/C 1260 | . 120 240 700 200 Destroy 0b10 Robot/NC 145 | 30 25 15 65 10 Destroy Leader 328 | . 38 30 200 60 Successful Hack 55 | . 39 . 11 5 Select Force Hacks 30 | . 30 . . . Disable Machine 30 | . . . . 30 Destroy Structure 73 | . 1 1 56 15 Lose Combat Pursuer 45 | . 30 . 15 . Influence Decreases 1966 | 20 293 138 786 729 Entered New Map 332 | . 4 . 91 237 Time Decay 1400 | 20 289 138 675 278 Lost Part 60 | . . . 20 40 Purge Threat 174 | . . . . 174 Squads Dispatched 7 | . 3 . 3 1 Investigation 3 | . 2 . 1 . Extermination . | . . . . . Reinforcement 4 | . 1 . 2 1 Assault . | . . . . . Garrison . | . . . . . Intercept . | . . . . . Searches Triggered . | . . . . . Construction Impeded . | . . . . . Haulers Reinforced . | . . . . . Active Scanning Responses . | . . . . . Cargo Convoy Interrupts . | . . . . . Stealth | -11 -10 -10 -9 -9 --------- Run | Yrd Mat Min Mat Sto Distress Signals 6 | . 1 . 4 1 Communications Jammed . | . . . . . Distress Signals . | . . . . . Times Spotted 99 | . 17 13 55 14 Peak Tracking Total 11 | . 3 5 11 4 Tactical Retreats 3 | . 1 . 2 . Traps | -11 -10 -10 -9 -9 ------- Run | Yrd Mat Min Mat Sto Traps Triggered 4 | . 1 . 2 1 Indirectly . | . . . . . Trap Hack Attempts . | . . . . . Triggered . | . . . . . Disarmed . | . . . . . Reprogrammed . | . . . . . Reused . | . . . . . Traps Extracted . | . . . . . Installed . | . . . . . Triggered . | . . . . . Machines | -11 -10 -10 -9 -9 ---------- Run | Yrd Mat Min Mat Sto Machines Disabled 2 | . . . . 2 Max in Single Turn 1 | . . . . 1 Machines Repaired . | . . . . . Machines Dismantled . | . . . . . Machines Sabotaged . | . . . . . Overloaded Fab Kills . | . . . . . Hacking | -11 -10 -10 -9 -9 --------- Run | Yrd Mat Min Mat Sto Machines Accessed 21 | . 8 . 11 2 Terminals 17 | . 6 . 9 2 Fabricators . | . . . . . Repair Stations 1 | . . . 1 . Recycling Units 2 | . 2 . . . Scanalyzers 1 | . . . 1 . Garrison Access . | . . . . . Total Hacks 62 | . 26 . 30 6 Successful 37 | . 16 . 17 4 Failed 25 | . 10 . 13 2 Catastrophic 4 | . 1 . 2 1 Database Lockouts . | . . . . . Manual 42 | . 19 . 21 2 Terminals 48 | . 20 . 22 6 Fabricators . | . . . . . Repair Stations 4 | . . . 4 . Recycling Units 6 | . 6 . . . Scanalyzers 4 | . . . 4 . Garrison Access . | . . . . . Terminal Hacks 14 | . 8 . 2 4 Robot Analysis 3 | . 2 . . 1 Terminal Index 1 | . 1 . . . Alert Level 1 | . . . . 1 Unreport Threat 2 | . . . . 2 Locate Traps 2 | . 2 . . . Hauler Manifests 1 | . . . 1 . Zone Layout 4 | . 3 . 1 . Fabricator Hacks . | . . . . . Repair Station Hacks 4 | . . . 4 . Scan Component 2 | . . . 2 . Repair 2 | . . . 2 . Recycling Unit Hacks 1 | . 1 . . . Retrieve Components 1 | . 1 . . . Scanalyzer 4 | . . . 4 . Insert Component 2 | . . . 2 . Analyze 2 | . . . 2 . Garrison Access Hacks . | . . . . . Unauthorized Hacks 14 | . 7 . 7 . Terminals 11 | . 4 . 7 . Track 1 | . 1 . . . Botnet 3 | . 1 . 2 . Skim 7 | . 2 . 5 . Fabricators . | . . . . . Repair Stations . | . . . . . Recycling Units 3 | . 3 . . . Monitor 1 | . 1 . . . Reject 1 | . 1 . . . Tunnel 1 | . 1 . . . Scanalyzers . | . . . . . Garrison Access . | . . . . . Data Cores Recovered . | . . . . . Used . | . . . . . Hacking Detections 20 | . 8 . 10 2 Full Trace Events 1 | . . . 1 . Feedback Events . | . . . . . Feedback Blocked . | . . . . . Robot Schematics Acquired . | . . . . . Robots Built . | . . . . . Authchips . | . . . . . Time . | . . . . . Total Robot Build Rating . | . . . . . Part Schematics Acquired 2 | . . . 2 . Parts Built . | . . . . . Authchips . | . . . . . Time . | . . . . . Total Part Build Rating . | . . . . . Parts Repaired 2 | . . . 2 . Time 76 | . . . 76 . Parts Recycled . | . . . . . Recycled Matter . | . . . . . Retrieved Matter . | . . . . . Retrieved Components 9 | . 9 . . . Parts Scanalyzed 2 | . . . 2 . Part Schematics Acquired 2 | . . . 2 . Parts Damaged . | . . . . . Bothacking | -11 -10 -10 -9 -9 ------------ Run | Yrd Mat Min Mat Sto Used RIF Installer . | . . . . . Robots Hacked . | . . . . . Non-combat . | . . . . . Combat . | . . . . . Robot Hacks Applied . | . . . . . Relay Couplers Released . | . . . . . Fabnet Peak Effective % . | . . . . . Robots Rewired . | . . . . . Allies Hacked . | . . . . . Hacks Repelled . | . . . . . Allies | -11 -10 -10 -9 -9 -------- Run | Yrd Mat Min Mat Sto Total Allies . | . . . . . Largest Group . | . . . . . Highest-Rated Group . | . . . . . Highest-Rated Ally . | . . . . . Total Orders . | . . . . . Ally Attacks . | . . . . . Total Damage . | . . . . . Kills . | . . . . . Allies Corrupted . | . . . . . Allies Melted . | . . . . . Intel | -11 -10 -10 -9 -9 ------- Run | Yrd Mat Min Mat Sto Active Infowar (turns) 4424 | 3 783 397 2808 433 Sensors 120 | . . 120 . . Seismic 4269 | 3 783 277 2773 433 ECM 59 | . . . 59 . Robot Analysis Total 3 | . 2 . . 1 Derelict Logs Recovered 1 | . . 1 . . Drone Launches . | . . . . . Drone Recoveries . | . . . . . Exploration | -11 -10 -10 -9 -9 ------------- Run | Yrd Mat Min Mat Sto Turns Passed 5999 | 74 1469 1004 2841 611 Spaces Moved 2636 | 34 803 535 1098 166 Core . | . . . . . Treads 2328 | . 529 535 1098 166 Legs 308 | 34 274 . . . Wheels . | . . . . . Hover . | . . . . . Flight . | . . . . . Fastest Speed 120 | 120 120 160 160 240 Average Speed 182 | 120 148 160 211 240 Slowest Speed 240 | 120 190 160 240 240 Overloaded Moves . | . . . . . Propulsion Burnouts . | . . . . . Robots Hopped . | . . . . . Potential Cave-ins . | . . . . . Cave-ins Triggered . | . . . . . Exploration Rate (%) 61 | 4 95 96 86 27 Regions Visited 4 Branch Regions 2 Pre-discovered Areas 1 | . 1 . . . Known Exits Taken 1 | . . 1 . . Unknown Exits Taken 3 | 1 1 . 1 . Scrap Searched 3 | . . 3 . . Spaces Dug 51 | . . . 37 14 Terrain Destroyed 78 | . . 1 63 14 Melee 1 | . . . 1 . Projectile 1 | . . 1 . . AOE 76 | . . . 62 14 Terrain Rammed . | . . . . . Walls Destroyed . | . . . . . Machines Disabled . | . . . . . Actions | -11 -10 -10 -9 -9 --------- Run | Yrd Mat Min Mat Sto Total 3401 | 46 996 613 1451 295 Wait 304 | 1 95 12 134 62 Move 2632 | 33 802 534 1097 166 Hop . | . . . . . Pick Up 51 | . 18 5 26 2 Fast Attach 17 | 1 2 . 13 1 Attach 17 | . 2 2 10 3 Detach 3 | . 1 . 2 . Swap 66 | 1 18 8 29 10 Drop 65 | . 13 6 42 4 Fire 235 | 10 43 44 95 43 Melee 6 | . . . 2 4 Ram . | . . . . . Kick . | . . . . . Crush 5 | . 2 2 1 . Escape Stasis . | . . . . . Rewire . | . . . . . Trap . | . . . . . Miscellaneous . | . . . . . Route ------- -11/Scrapyard -10/Materials (discovered 6 exits: *Mat x3 / [*Min x2] / [*Sub]) -10/Mines (discovered 2 exits: *Mat x2) -9/Materials (discovered 4 exits: [*Mat x3] / *Sto) -9/Storage History --------- Turn | Location | Event 12 | -11/Scrapyard | Discovered new exit (range 3) 75 | -11/Scrapyard | Entered Materials 200 | -10/Materials | Discovered new exit (range 12) 316 | -10/Materials | Build established: Mutant 440 | -10/Materials | Discovered new exit (range 6) 547 | -10/Materials | Discovered new exit (range 10) 675 | -10/Materials | Derelicts attacked the area 839 | -10/Materials | Discovered new exit (range 5) 1027 | -10/Materials | Discovered new exit (range 7) 1197 | -10/Materials | Discovered new exit (range 15) 1544 | -10/Materials | Entered Mines 1556 | -10/Mines | Met a Derelict bent on vengeance 1591 | -10/Mines | Identified exit to Materials 1834 | -10/Mines | Excavation squad dispatched 1834 | -10/Mines | A large section of the Mines collapsed 1951 | -10/Mines | Core integrity fell below 50% 2468 | -10/Mines | Received a Rocket Launcher from a helpful Derelict 2469 | -10/Mines | Destroyed 7 combat bots 2484 | -10/Mines | Discovered exit to Materials (range 9) 2548 | -10/Mines | Entered Materials 2548 | -9/Materials | Evolved 2 slots: Utility x2 2765 | -9/Materials | Build established: Scavenger-Mutant 2816 | -9/Materials | Destroyed 7 combat bots 2990 | -9/Materials | Discovered new exit (range 5) 3390 | -9/Materials | Discovered new exit (range 7) 3456 | -9/Materials | Destroyed 8 combat bots 3636 | -9/Materials | Repaired Beamcaster? 3684 | -9/Materials | Repaired Seismic Detector 4767 | -9/Materials | Discovered new exit (range 16) 5188 | -9/Materials | Discovered new exit (range 15) 5237 | -9/Materials | Core integrity fell below 50% 5389 | -9/Materials | Entered Storage 5853 | -9/Storage | Lost 4 parts (1n2u1w) 5897 | -9/Storage | Core integrity fell below 20% 6000 | -9/Storage | Destroyed by Y-45 Defender with Beam Rifle Last Messages --------------- 05887_ Acquired 14 matter. 05903_ G-34 Mercenary destroyed. 05905_ System corrupted: FCS attempts to trigger Hvy. Assault Rifle. 05905_ System corrupted: Hvy. Assault Rifle misfires. 05906_ G-34 Mercenary destroyed. 05908_ Acquired 35 matter. 05918_ Triggered Explosive Trap. 05918_ An explosion rips through the floor. 05954_ Y-45 Defender destroyed. 05957_ System corrupted: Substantial component data lost. 05972_ Acquired 58 matter. 05977_ Acquired Hvy. Assault Rifle. 05986_ System corrupted: Substantial component data lost. 05993_ Connecting with Terminal... >>Alert(Purge) Purged threat record, alert level lowered. >>Alert(Purge) Purged threat record, alert level lowered. >>Alert(Check) Current Alert Level: Low Security Map ----- +----------------------------------------------------+ | | | | | | | | | | | | | | | | | | | | | | | | | | | | | | | | | | | | | | | ???????????????????????#######?#?????????????????? | | ?????????????????????## ????????????????? | | ?????????????????????? """ """????????????????? | | ??????????????????????#Y """ ""?????????????????? | | ??????????????????????# """ ???????????????????? | | ??????????????????????? ?????????????????????? | | ??????????????????????###@##???######????????????? | | ??????????????????????# ##### #????????????? | | ###???????????????????# ! #????????????? | | #???????????????????# T #????????????? | | #???????????????????+ ##### #????????????? | | #???????????????????######???## ##????????????? | | #?????????????????????????????# #?????????????? | | #????###??????????????????????# #?????????????? | | #??### #########??????????????# #?????????????? | | ########## #?????????????## ##????????????? | | ! #?????????????# ########?????? | | [ " #?????????????# #?????? | | ! #?????????????# ##????? | | +########### #?????????????# ##### ##????? | | ##??####%! ###########????######?### ##????? | | ] ######?#*= # #???########### ##????? | | # ?# # #???# = + #?????? | | # """ # # ##### [%= ??? | | # """ # # " """" + / = %!* #% | | # """ + + "[[[?" ## ##*%"""" %=# #?#### | | = # # # "[[*[" ## ##* !!= " # ##????? | | * # ! # # """""" ## ## !"!!![" + ?????? | | * # = # # ???? ## ## """""" # ????? | | #T#### + ####??###### ## ???? #####????? | | ###??#########/##??????????# ######???###????????? | +----------------------------------------------------+ Best States ------------- Heat Dissipation 50 Energy Generation 14 Energy Capacity 280 Matter Stores 300 Matter Capacity 300 Sight Range 16 Robot Scan Range 14 Terrain Scan Density 10 ECM Strength 1 Armor Coverage 600 Evasion (%) 55 Recoil Reduction 2 Offensive Hacking 10 Authchip Count 1 Item Schematics ----------------- Hvy. Armor Plating | -9/Materials | Scanalyzed Plasma Cutter | -9/Materials | Scanalyzed Robot Schematics ------------------ None Fabricated ------------ Nothing Repaired ---------- Beamcaster | 1% | -9/Materials Seismic Detector | 10% | -9/Materials Alien Tech Used ----------------- None Achievements -------------- None Challenges ------------ None Game ------ Seed WeightTerrainAutopenetrator Manual? 0 Play Time 00:40:50 Cumulative 367.7 hours Start 2025.07.07 @ 10:28:25 End 2025.07.07 @ 11:07:49 Sessions 1 Manual Loads 0 Difficulty Rogue Special Mode None Game No. 415 Rogue 415 Adventurer 0 Explorer 0 Win Type - Total 11 Types 8/0/2/1/0/0/0/0/0/0 Lore% 78 Gallery% 81 Achievement% 76 Wizard Run 0 Options --------- Layout 0 ASCII 0 Keyboard 0 Movement Numpad Keybinds 0 Fullscreen 2 Font 18/X11 Map View 76x50 Zoom Use 0% Tactical HUD 1 Map Filters NONE Filters NONE Steam 1 RUN: 7ca1756a-71f7-448f-b417-63e98cfa295d